bitfinex-derivatives/quotes_SOLF0:USTF0_20250520
["timestamp","ask_amount","ask_price","bid_price","bid_amount"]
[1747778480773,0.03923356,168.36,168.33,91.54244994]
[1747778481564,0.03923356,168.36,168.35,5.9376]
[1747778485872,5.9353,168.42,168.38,5.9362]
[1747778486067,5.9353,168.42,168.38,97.3962]
[1747778486677,5.9353,168.42,168.39,5.9361]
[1747778486870,0.0380575,168.42,168.39,0.04198454]
[1747778488283,0.0380575,168.42,168.41,5.9355]
[1747778491278,5.9484,168.51,168.39,4.00728454]
[1747778491480,5.9484,168.51,168.39,3.9653]
[1747778491980,5.9333,168.48,168.45,5.934]
[1747778492179,5.97601177,168.48,168.45,0.04084535]
[1747778492982,5.97601177,168.48,168.45,5.97484535]
[1747778494677,0.04271177,168.48,168.45,0.04084535]
[1747778495576,0.04271177,168.48,168.46,5.9335]
[1747778496980,5.97581177,168.48,168.45,5.97484535]
[1747778497383,5.97581177,168.48,168.45,0.04084535]
[1747778497384,0.04271177,168.48,168.45,0.04084535]
[1747778497683,5.97581177,168.48,168.46,5.9336]
[1747778498582,0.04271177,168.48,168.46,5.9336]
[1747778499581,5.97581177,168.48,168.46,5.9336]
[1747778500178,0.04271177,168.48,168.47,5.9334]
[1747778510193,0.04271177,168.48,168.45,0.04084535]
[1747778510695,5.97601177,168.48,168.45,0.04084535]
[1747778511201,0.04271177,168.48,168.45,0.04084535]
[1747778511408,4.097,168.47,168.41,91.34]
[1747778511809,5.9343,168.45,168.42,5.9349]
[1747778512111,5.9343,168.45,168.41,91.34]
[1747778512315,5.9345,168.44,168.42,5.935]
[1747778512513,4.097,168.47,168.41,0.04317452]
[1747778512807,4.097,168.47,168.41,5.97847452]
[1747778512808,0.04270623,168.46,168.41,5.97847452]
[1747778513610,5.9347,168.44,168.41,5.97847452]
[1747778513813,0.04270623,168.46,168.4,5.9357]
[1747778514012,0.04270623,168.46,168.35,91.34]
[1747778514407,5.9356,168.41,168.35,91.34]
[1747778514814,5.98075023,168.41,168.38,5.9364]
[1747778515112,0.04515023,168.41,168.37,0.04449899]
[1747778515409,4.0021,168.4,168.32,92.66162092]
[1747778515609,4.0021,168.4,168.32,91.34]
[1747778515810,5.9375,168.36,168.32,97.2786]
[1747778516013,4.0021,168.4,168.32,97.2786]
[1747778516205,5.9377,168.35,168.34,0.03961091]
[1747778516817,5.9374,168.36,168.34,0.03961091]
[1747778517518,5.937,168.37,168.34,0.03961091]
[1747778518114,5.937,168.37,168.34,5.97751091]
[1747778521016,5.9374,168.36,168.34,0.03961091]
[1747778521217,91.40117715,168.38,168.34,0.03961091]
[1747778521415,91.40117715,168.38,168.29,91.36]
[1747778521714,91.40117715,168.38,168.31,5.9388]
[1747778522420,91.40117715,168.38,168.24,1.32162092]
[1747778522715,91.36,168.38,168.24,1.32162092]
[1747778523221,5.94,168.29,168.25,5.9411]
[1747778523515,0.04281797,168.29,168.25,0.04356232]
[1747778523716,5.9412,168.25,168.21,5.9425]
[1747778523920,91.38,168.27,168.18,91.38]
[1747778524112,91.38,168.27,168.17,1.32162092]
[1747778524714,0.04234014,168.24,168.2,0.02910829]
[1747778524908,5.9428,168.21,168.2,0.02910829]
[1747778525114,91.38,168.23,168.17,7.26532092]
[1747778525115,93.4476,168.23,168.17,7.26532092]
[1747778525315,2.0712,168.22,168.17,7.26532092]
[1747778525614,5.9426,168.21,168.17,7.26532092]
[1747778525815,2.0712,168.22,168.17,1.32162092]
[1747778526113,2.0712,168.22,168.13,230.65118544]
[1747778526315,0.04543907,168.19,168.15,5.9446]
[1747778526925,5.98893907,168.19,168.15,5.9446]
[1747778527221,0.04543907,168.19,168.13,230.65118544]
[1747778527830,0.04543907,168.19,168.18,5.9436]
[1747778531227,93.5226,168.29,168.17,91.44]
[1747778531723,93.5226,168.29,168.28,5.9401]
[1747778532724,2.0826,168.29,168.28,5.9401]
[1747778534524,2.06180493,168.3,168.29,5.9397]
[1747778535325,0.03910493,168.3,168.29,5.9397]
[1747778548335,4.0092,168.39,168.34,5.9377]
[1747778549139,5.9372,168.37,168.34,5.9377]
[1747778549435,5.97697099,168.37,168.34,5.97580655]
[1747778549637,5.97697099,168.37,168.34,0.03810655]
[1747778549937,5.9373,168.36,168.34,0.03810655]
[1747778550840,5.97687099,168.37,168.34,5.97600655]
[1747778551442,5.9373,168.36,168.34,0.03810655]
[1747778554240,5.9376,168.35,168.34,0.03810655]
[1747778554830,5.9376,168.35,168.34,6.55e-06]
[1747778563154,11.8776,168.35,168.34,6.55e-06]
[1747778572263,22.88230948,168.35,168.34,6.55e-06]
[1747778573860,40.74230948,168.35,168.34,6.55e-06]
[1747778574061,11.8812,168.27,168.14,5.9448]
[1747778574260,95.3829,168.26,168.14,5.9448]
[1747778574459,97.4806,168.26,168.14,5.9448]
[1747778574659,5.9439,168.18,168.14,5.9448]
[1747778575162,5.98183798,168.18,168.15,5.9446]
[1747778579973,5.944,168.17,168.14,0.04487718]
[1747778580560,0.03793798,168.18,168.14,0.04487718]
[1747778581573,5.9443,168.17,168.14,5.98967718]
[1747778581866,0.03793798,168.18,168.14,0.04487718]
[1747778582072,0.03793798,168.18,168.16,5.9441]
[1747778582269,0.03793798,168.18,168.14,0.04487718]
[1747778582670,0.03793798,168.18,168.17,5.944]
[1747778583671,513.48,168.27,168.17,5.94]
[1747778583871,91.36,168.26,168.15,91.36]
[1747778584072,97.301,168.26,168.23,5.9417]
[1747778584376,207.95019443,168.29,168.23,5.9417]
[1747778584679,5.941,168.26,168.24,0.04180445]
[1747778585173,5.9411,168.25,168.24,0.04180445]
[1747778586877,5.9409,168.26,168.24,0.04180445]
[1747778587076,0.04139366,168.28,168.24,0.04180445]
[1747778588477,5.9411,168.25,168.24,0.04180445]
[1747778590779,97.2811,168.25,168.24,0.04180445]
[1747778595083,5.9429,168.2,168.16,91.34]
[1747778595984,5.98482448,168.2,168.17,5.9439]
[1747778598287,5.9433,168.19,168.17,5.9439]
[1747778598888,0.04192448,168.2,168.16,0.04050763]
[1747778599096,5.944,168.17,168.16,0.04050763]
[1747778601189,5.944,168.17,168.16,7.63e-06]
[1747778601391,97.224,168.17,168.16,7.63e-06]
[1747778605185,103.164,168.17,168.16,7.63e-06]
[1747778608191,115.91031616,168.17,168.16,7.63e-06]
[1747778611703,122.06991616,168.17,168.16,7.63e-06]
[1747778615303,123.10573834,168.17,168.16,7.63e-06]
[1747778617810,5.9493,168.02,168.01,5.9532]
[1747778618009,12.32245808,168.02,168.01,5.9532]
[1747778622015,5.9497,168.01,167.98,5.9505]
[1747778622213,5.9497,168.01,167.97,5.9509]
[1747778622613,12.32255808,168.02,167.96,6.0477]
[1747778622813,12.32255808,168.02,167.98,5.9507]
[1747778623112,6.37315808,168.02,167.96,6.0477]
[1747778623311,6.37315808,167.99,167.97,5.951]
[1747778626613,12.32355808,167.99,167.97,5.951]
[1747778629313,6.37315808,167.99,167.96,11.999]
[1747778629518,6.41729069,167.99,167.96,11.999]
[1747778629815,12.36789069,167.99,167.96,11.999]
[1747778630417,12.36789069,167.99,167.97,5.9509]
[1747778635515,5.9507,167.98,167.96,6.0477]
[1747778636226,0.04413261,167.99,167.96,6.0477]
[1747778636718,6.37315808,168.02,167.96,6.0477]
[1747778637025,6.37315808,168.05,167.96,6.0477]
[1747778637214,6.37315808,168.05,168.04,5.9484]
[1747778637415,91.28,168.11,168.01,91.28]
[1747778637614,6.37315808,168.07,168.02,91.28]
[1747778637823,6.37315808,168.08,168.06,5.9476]
[1747778638321,5.76315808,168.08,168.06,5.9476]
[1747778639421,0.04100783,168.09,168.05,0.03945425]
[1747778639615,0.04100783,168.09,168.06,91.28]
[1747778639821,0.04100783,168.09,168.08,5.9472]
[1747778641114,6.37315808,168.13,168.1,5.9463]
[1747778641314,6.37315808,168.14,168.1,5.9463]
[1747778641814,5.9454,168.13,168.1,5.9463]
[1747778642209,5.98911324,168.13,168.1,5.99112238]
[1747778643825,5.9458,168.12,168.1,0.04482238]
[1747778645526,12.31925808,168.11,168.1,0.04482238]
[1747778651327,5.9461,168.11,168.1,0.04482238]
[1747778651518,12.31925808,168.11,168.1,0.04482238]
[1747778652322,12.31925808,168.11,168.1,2.238e-05]
[1747778652629,18.69241616,168.11,168.1,2.238e-05]
[1747778654931,12.31925808,168.11,168.1,2.238e-05]
[1747778656730,18.69241616,168.11,168.1,2.238e-05]
[1747778657734,24.63241616,168.11,168.1,2.238e-05]
[1747778659433,18.69241616,168.11,168.1,2.238e-05]
[1747778660232,24.63241616,168.11,168.1,2.238e-05]
[1747778663941,35.63712564,168.11,168.1,2.238e-05]
[1747778666141,24.63241616,168.11,168.1,2.238e-05]
[1747778667469,24.63241616,168.11,167.83,515.52162092]
[1747778667470,6.37315808,167.92,167.87,91.18]
[1747778667647,6.37315808,167.92,167.83,515.52162092]
[1747778667648,6.37315808,167.89,167.84,91.18]
[1747778668039,6.37315808,167.89,167.83,1.32162092]
[1747778668253,0.04044347,167.88,167.84,0.03851547]
[1747778668954,0.04044347,167.88,167.84,5.99401547]
[1747778669151,6.37315808,167.87,167.84,5.99401547]
[1747778670347,6.37315808,167.87,167.84,0.03851547]
[1747778671258,6.37315808,167.87,167.84,5.99421547]
[1747778671465,12.36800155,167.88,167.84,5.99421547]
[1747778672160,5.9546,167.87,167.84,5.99421547]
[1747778672553,6.41360155,167.88,167.85,5.9553]
[1747778672766,0.04044347,167.88,167.84,0.03851547]
[1747778672963,0.04044347,167.88,167.85,91.22]
[1747778673361,0.04044347,167.88,167.85,97.18]
[1747778673561,0.04044347,167.88,167.85,91.22]
[1747778673859,0.04044347,167.88,167.87,5.9546]
[1747778675250,0.04044347,167.88,167.87,11.9146]
[1747778682403,0.04044347,167.88,167.87,103.1346]
[1747778682577,0.04044347,167.88,167.87,97.1746]
[1747778684176,0.04044347,167.88,167.87,5.9546]
[1747778688864,0.04044347,167.88,167.85,5.9552]
[1747778689068,5.9547,167.87,167.84,91.25851547]
[1747778689270,0.04044347,167.88,167.84,0.03851547]
[1747778689461,6.37315808,167.86,167.84,0.03851547]
[1747778689663,5.9553,167.85,167.84,0.03851547]
[1747778693274,5.9573,167.8,167.75,514.26]
[1747778693567,5.9573,167.8,167.75,91.16]
[1747778694073,5.9576,167.79,167.75,91.16]
[1747778694370,0.0412898,167.79,167.76,5.9584]
[1747778694974,0.0412898,167.79,167.77,5.958]
[1747778695675,0.0412898,167.79,167.75,91.16]
[1747778695676,0.0412898,167.79,167.75,5.9585]
[1747778696082,12.33115808,167.78,167.75,5.9585]
[1747778697770,6.37315808,167.78,167.71,91.16]
[1747778697979,6.37315808,167.75,167.71,91.16]
[1747778698180,6.41558789,167.75,167.68,91.18]
[1747778698578,5.9593,167.74,167.71,5.96]
[1747778698880,0.04242981,167.75,167.68,91.18]
[1747778699081,6.41558789,167.75,167.73,5.9593]
[1747778699381,0.04242981,167.75,167.68,91.18]
[1747778702279,0.04242981,167.75,167.74,5.9592]
[1747778702579,0.04242981,167.75,167.68,91.18]
[1747778702779,0.04242981,167.75,167.73,5.9595]
[1747778704284,0.04242981,167.75,167.68,91.18]
[1747778704483,6.37315808,167.73,167.65,333.99786712]
[1747778704683,0.03807514,167.71,167.65,333.99786712]
[1747778705989,6.37315808,167.7,167.65,91.2]
[1747778706177,5.9613,167.69,167.64,1.32162092]
[1747778706483,6.37315808,167.7,167.62,91.22]
[1747778706684,5.9618,167.67,167.64,5.9626]
[1747778706887,5.9618,167.67,167.62,91.22]
[1747778707186,6.37315808,167.67,167.6,1.32162092]
[1747778707878,5.9623,167.66,167.63,5.963]
[1747778708081,6.37315808,167.64,167.6,1.32162092]
[1747778708276,6.37315808,167.61,167.6,1.32162092]
[1747778708484,12.33695808,167.61,167.6,1.32162092]
[1747778709690,6.37315808,167.63,167.56,91.22]
[1747778709886,0.03789526,167.61,167.57,91.22]
[1747778710389,0.03789526,167.61,167.6,5.9642]
[1747778710590,0.03789526,167.61,167.49,54.61928229]
[1747778710790,91.22,167.62,167.56,5.9654]
[1747778710791,0.04447594,167.57,167.56,5.9654]
[1747778710992,0.04272428,167.58,167.56,5.9654]
[1747778711196,0.04272428,167.58,167.51,91.22]
[1747778711693,0.04272428,167.58,167.57,5.9653]
[1747778712786,0.04272428,167.58,167.51,91.22]
[1747778713483,6.41588236,167.58,167.51,91.22]
[1747778714382,12.38088236,167.58,167.51,91.22]
[1747778714992,5.9654,167.57,167.54,5.9661]
[1747778715290,6.41588236,167.58,167.51,91.22]
[1747778715483,6.41588236,167.58,167.51,97.1874]
[1747778715892,5.9666,167.54,167.51,97.1874]
[1747778716095,0.04585379,167.54,167.51,91.22]
[1747778716486,5.9674,167.51,167.48,5.9684]
[1747778716790,6.37315808,167.52,167.47,91.28]
[1747778716985,12.34045808,167.52,167.48,5.9684]
[1747778717684,6.37315808,167.52,167.44,91.3]
[1747778717883,0.04029238,167.5,167.44,91.3]
[1747778718599,0.04029238,167.5,167.48,5.9682]
[1747778718894,0.04029238,167.5,167.44,91.3]
[1747778719290,6.41345046,167.5,167.48,5.9684]
[1747778719996,6.41345046,167.5,167.49,5.9681]
[1747778720193,0.04029238,167.5,167.49,5.9681]
[1747778722690,0.04029238,167.5,167.42,91.32]
[1747778722900,12.38125046,167.5,167.42,91.32]
[1747778723097,6.41345046,167.5,167.42,91.32]
[1747778723289,6.41345046,167.5,167.45,5.9693]
[1747778723489,6.41345046,167.5,167.42,91.32]
[1747778723892,5.9686,167.48,167.44,5.9697]
[1747778724093,5.9686,167.48,167.42,91.32]
[1747778724398,5.9683,167.49,167.42,91.32]
[1747778724590,6.41345046,167.5,167.42,91.32]
[1747778724995,6.41345046,167.5,167.45,5.9695]
[1747778725291,6.41345046,167.5,167.42,91.32]
[1747778725599,6.41345046,167.5,167.48,5.9685]
[1747778725897,0.04029238,167.5,167.42,91.32]
[1747778727799,0.04029238,167.5,167.48,5.9684]
[1747778728095,0.04029238,167.5,167.39,11.9429]
[1747778728295,0.04156286,167.46,167.39,11.9429]
[1747778729101,0.04156286,167.46,167.38,91.26]
[1747778729298,6.37315808,167.45,167.38,91.26]
[1747778729602,5.9703,167.43,167.4,5.9711]
[1747778729801,0.04156286,167.46,167.38,91.26]
[1747778729995,0.04249829,167.44,167.38,91.26]
[1747778730196,0.04249829,167.44,167.43,5.9703]
[1747778730500,0.04249829,167.44,167.38,91.26]
[1747778731095,6.01239829,167.44,167.38,91.26]
[1747778731293,0.04249829,167.44,167.31,1199.38877714]
[1747778731498,0.03889573,167.39,167.31,1199.38877714]
[1747778731800,0.03889573,167.39,167.31,683.72877714]
[1747778732297,5.973,167.36,167.32,5.9742]
[1747778732499,0.03889573,167.39,167.31,683.72877714]
[1747778732701,0.03812695,167.37,167.31,683.72877714]
[1747778732904,2.0464,167.45,167.31,690.10193522]
[1747778734005,0.04309403,167.4,167.36,0.04202371]
[1747778734204,0.04309403,167.4,167.37,91.3]
[1747778734598,0.04309403,167.4,167.39,5.9717]
[1747778737210,0.04309403,167.4,167.38,5.972]
[1747778738206,0.04309403,167.4,167.39,5.9717]
[1747778739410,532.0,167.62,167.36,0.04202371]
[1747778739411,10.27388291,167.52,167.46,5.9692]
[1747778739601,4.0194,167.51,167.42,91.32]
[1747778739803,4.0194,167.51,167.43,91.32]
[1747778740007,4.0194,167.51,167.48,5.9683]
[1747778740213,4.0194,167.51,167.43,91.32]
[1747778740517,0.04248184,167.49,167.48,5.9685]
[1747778740714,0.03924556,167.5,167.48,91.32]
[1747778740905,4.556e-05,167.5,167.48,91.32]
[1747778741308,4.556e-05,167.5,167.49,5.9681]
[1747778741813,3.9171,167.62,167.61,5.9638]
[1747778742017,97.2824,167.65,167.57,91.32]
[1747778742213,5.9624,167.65,167.57,91.32]
[1747778742718,10.27388291,167.66,167.57,91.32]
[1747778742915,0.04497763,167.63,167.6,0.04133167]
[1747778743310,6.00497763,167.63,167.53,91.32]
[1747778743620,91.32,167.64,167.53,91.32]
[1747778743823,10.27388291,167.62,167.5,91.32]
[1747778744211,5.967,167.53,167.5,91.32]
[1747778744411,91.32,167.57,167.5,91.32]
[1747778744721,0.03811467,167.53,167.52,0.04103227]
[1747778744924,0.04378687,167.54,167.47,91.3]
[1747778745222,0.04378687,167.54,167.44,607.24]
[1747778745918,0.04378687,167.54,167.47,0.04287354]
[1747778746218,5.9685,167.48,167.47,0.04287354]
[1747778746412,0.03920787,167.49,167.41,1.32162092]
[1747778746820,0.03920787,167.49,167.37,91.3]
[1747778747017,10.27388291,167.46,167.34,91.3]
[1747778747323,93.2956,167.45,167.34,91.3]
[1747778747526,0.04223922,167.41,167.34,91.3]
[1747778748224,5.9714,167.4,167.34,91.3]
[1747778748523,0.04223922,167.41,167.34,91.3]
[1747778749125,0.04223922,167.41,167.36,5.9727]
[1747778750126,0.04223922,167.41,167.37,5.9722]
[1747778750324,0.04223922,167.41,167.34,91.3]
[1747778750824,0.04223922,167.41,167.39,5.9714]
[1747778751415,0.04223922,167.41,167.34,91.3]
[1747778751823,0.04223922,167.41,167.36,5.9727]
[1747778752023,0.04223922,167.41,167.34,91.3]
[1747778752521,5.972,167.39,167.34,91.3]
[1747778752727,0.04223922,167.41,167.34,91.3]
[1747778752928,5.9715,167.4,167.36,5.9725]
[1747778753823,5.9726,167.37,167.33,5.9737]
[1747778754030,0.04468673,167.37,167.33,5.9737]
[1747778754326,5.9734,167.35,167.31,598.42297714]
[1747778754823,5.9729,167.36,167.32,5.9739]
[1747778755128,5.9729,167.36,167.31,592.44877714]
[1747778755329,0.04468673,167.37,167.31,592.44877714]
[1747778757431,0.04468673,167.37,167.36,5.9728]
[1747778757624,0.04468673,167.37,167.31,592.44877714]
[1747778758128,6.01728673,167.37,167.33,5.9736]
[1747778758329,0.04468673,167.37,167.33,5.9736]
[1747778759230,0.04468673,167.37,167.31,592.44877714]
[1747778760222,0.04468673,167.37,167.36,5.9728]
[1747778760431,1.9204,167.44,167.36,93.08]
[1747778760628,5.9686,167.48,167.45,5.9694]
[1747778760830,3.9182,167.5,167.41,93.08]
[1747778761034,3.9182,167.5,167.42,93.08]
[1747778761332,0.04004275,167.48,167.44,0.04229886]
[1747778761727,0.04004275,167.48,167.45,5.9695]
[1747778761925,0.04004275,167.48,167.44,0.04229886]
[1747778762734,6.00884275,167.48,167.44,6.01209886]
[1747778762938,0.04004275,167.48,167.44,0.04229886]
[1747778763326,0.04004275,167.48,167.45,5.9695]
[1747778763530,0.04004275,167.48,167.44,0.04229886]
[1747778764133,5.9691,167.47,167.44,0.04229886]
[1747778764831,5.9694,167.46,167.44,0.04229886]
[1747778765040,0.04004275,167.48,167.44,0.04229886]
[1747778765840,5.9695,167.45,167.44,0.04229886]
[1747778766733,5.9693,167.46,167.44,0.04229886]
[1747778766932,0.04004275,167.48,167.44,0.04229886]
[1747778767132,0.04004275,167.48,167.44,6.01189886]
[1747778767341,0.04004275,167.48,167.44,0.04229886]
[1747778767532,0.04004275,167.48,167.44,93.10229886]
[1747778768140,5.9689,167.47,167.44,93.10229886]
[1747778768633,6.00864275,167.48,167.44,99.07199886]
[1747778768940,6.00864275,167.48,167.44,93.10229886]
[1747778769242,0.04004275,167.48,167.46,5.9691]
[1747778769542,0.04004275,167.48,167.44,93.10229886]
[1747778769841,6.00854275,167.48,167.45,5.9693]
[1747778770046,0.04004275,167.48,167.45,5.9693]
[1747778770344,0.04004275,167.48,167.45,5.9695]
[1747778770738,0.04004275,167.48,167.44,0.04229886]
[1747778770938,0.04004275,167.48,167.44,93.10229886]
[1747778771139,0.04004275,167.48,167.44,0.04229886]
[1747778771535,5.9694,167.46,167.44,0.04229886]
[1747778773342,5.9695,167.45,167.44,0.04229886]
[1747778773550,93.04,167.46,167.35,93.04]
[1747778773937,93.04,167.46,167.36,5.9726]
[1747778774238,93.04,167.46,167.32,93.04]
[1747778774542,5.9731,167.35,167.32,93.04]
[1747778774730,0.04016046,167.36,167.29,93.04]
[1747778774931,5.9735,167.34,167.3,5.9747]
[1747778775138,0.04016046,167.36,167.29,93.04]
[1747778776143,6.01316046,167.36,167.31,5.9743]
[1747778776347,6.01316046,167.36,167.29,93.04]
[1747778776642,0.04016046,167.36,167.29,93.04]
[1747778777247,0.04016046,167.36,167.34,5.9731]
[1747778777749,0.04016046,167.36,167.29,93.04]
[1747778778143,6.01296046,167.36,167.33,5.9738]
[1747778778345,0.04016046,167.36,167.29,93.04]
[1747778778744,0.04016046,167.36,167.35,5.9731]
[1747778780646,98.52,167.46,167.34,85.12]
[1747778781051,98.52,167.46,167.35,10.27388291]
[1747778781246,4.0171,167.49,167.44,5.9696]
[1747778781453,4.0171,167.49,167.41,98.52]
[1747778781750,0.0446726,167.47,167.43,0.04053877]
[1747778782852,0.0446726,167.47,167.44,5.9697]
[1747778784457,0.0446726,167.47,167.43,0.04053877]
[1747778784770,0.0446726,167.47,167.46,5.9692]
[1747778785258,0.0446726,167.47,167.45,98.5]
[1747778786665,102.465,167.54,167.45,98.5]
[1747778786862,2.0067,167.54,167.45,98.5]
[1747778787062,100.4583,167.58,167.48,5.9683]
[1747778787256,102.5013,167.58,167.48,5.9683]
[1747778787456,102.5013,167.58,167.49,98.5]
[1747778787655,5.9666,167.54,167.49,104.4681]
[1747778787962,5.9666,167.54,167.52,0.0395301]
[1747778788257,0.04368025,167.55,167.52,0.0395301]
[1747778788765,0.04368025,167.55,167.53,98.5]
[1747778789058,6.00978025,167.55,167.53,98.5]
[1747778789260,0.04368025,167.55,167.53,98.5]
[1747778789660,0.04368025,167.55,167.52,0.0395301]
[1747778790355,5.9667,167.53,167.52,0.0395301]
[1747778790553,0.04368025,167.55,167.45,98.48]
[1747778790759,2.0617,167.52,167.45,98.48]
[1747778790959,1.9854,167.51,167.41,614.48]
[1747778791153,98.48,167.5,167.41,98.48]
[1747778791561,5.9706,167.42,167.41,98.48]
[1747778794271,5.971,167.41,167.4,0.04388125]
[1747778799381,6.01475897,167.43,167.4,0.04388125]
[1747778799680,6.01475897,167.43,167.41,98.48]
[1747778800075,5.9706,167.42,167.41,98.48]
[1747778800781,6.01465897,167.43,167.41,98.48]
[1747778801374,5.9706,167.42,167.41,98.48]
[1747778801681,0.04415897,167.43,167.41,98.48]
[1747778803084,5.9706,167.42,167.41,98.48]
[1747778803281,0.04415897,167.43,167.41,98.48]
[1747778803680,6.01455897,167.43,167.41,98.48]
[1747778804375,0.04415897,167.43,167.41,98.48]
[1747778804981,0.04415897,167.43,167.42,5.9706]
[1747778807981,0.04415897,167.43,167.41,104.4509]
[1747778808185,0.04415897,167.43,167.41,98.48]
[1747778808985,5.9706,167.42,167.41,98.48]
[1747778810683,6.01475897,167.43,167.41,98.48]
[1747778811176,5.9706,167.42,167.41,98.48]
[1747778812983,5.971,167.41,167.4,0.04388125]
[1747778818183,5.9719,167.39,167.36,5.9726]
[1747778818388,4.1,167.42,167.35,96.7]
[1747778818583,4.1,167.42,167.37,5.9722]
[1747778818788,5.9716,167.4,167.37,5.9722]
[1747778819295,6.01597319,167.4,167.37,5.9722]
[1747778819495,0.04437319,167.4,167.38,5.9719]
[1747778819698,0.04437319,167.4,167.35,96.7]
[1747778820200,0.04437319,167.4,167.35,106.97388291]
[1747778820496,0.04437319,167.4,167.36,10.27388291]
[1747778821097,0.04437319,167.4,167.39,5.9717]
[1747778821394,0.04437319,167.4,167.39,102.6917]
[1747778821597,2.0837,167.5,167.39,96.72]
[1747778821792,2.0837,167.5,167.4,10.27388291]
[1747778821992,5.9684,167.49,167.45,5.9693]
[1747778822190,2.0837,167.5,167.45,96.72]
[1747778822589,0.04522767,167.49,167.46,0.04364634]
[1747778822998,5.9691,167.47,167.46,0.04364634]
[1747778823395,0.04522767,167.49,167.42,96.72]
[1747778823593,100.852,167.5,167.39,96.72]
[1747778823789,5.9705,167.43,167.4,5.9712]
[1747778824393,0.0413919,167.43,167.38,1.32162092]
[1747778824998,5.9717,167.39,167.38,1.32162092]
[1747778825403,5.9717,167.39,167.36,96.72]
[1747778825595,5.972,167.38,167.36,96.72]
[1747778826297,6.01502758,167.39,167.36,96.72]
[1747778827901,6.01502758,167.39,167.36,102.6927]
[1747778828587,0.04302758,167.39,167.36,96.72]
[1747778829995,0.04302758,167.39,167.37,5.9724]
[1747778830899,0.04302758,167.39,167.38,5.972]
[1747778838711,5.9698,167.45,167.41,5.9708]
[1747778838910,5.9699,167.44,167.41,101.3308]
[1747778839705,6.01337142,167.44,167.41,101.36975856]
[1747778840203,0.04347142,167.44,167.43,5.9703]
[1747778840406,0.04347142,167.44,167.41,95.39895856]
[1747778841712,0.04347142,167.44,167.43,5.9703]
[1747778845519,4.0256,167.49,167.47,5.9686]
[1747778849222,4.0256,167.49,167.46,0.0389335]
[1747778849422,2.0989,167.49,167.46,0.0389335]
[1747778850223,2.0989,167.49,167.47,5.9686]
[1747778850521,6.0114581,167.5,167.47,5.9686]
[1747778853925,0.0435581,167.5,167.46,0.0389335]
[1747778854124,0.0435581,167.5,167.42,96.66162092]
[1747778854328,0.0435581,167.5,167.42,95.34]
[1747778854528,0.0435581,167.5,167.41,1.32162092]
[1747778854830,5.9706,167.42,167.41,1.32162092]
[1747778856329,0.04366386,167.43,167.36,95.34]
[1747778856527,1.916,167.42,167.36,95.34]
[1747778856829,1.916,167.42,167.36,101.3128]
[1747778857033,1.916,167.42,167.36,95.34]
[1747778857222,5.972,167.39,167.36,95.34]
[1747778857426,6.0097248,167.39,167.36,95.34]
[1747778858633,0.0377248,167.39,167.36,95.34]
[1747778859534,0.0377248,167.39,167.36,101.3126]
[1747778859831,0.0377248,167.39,167.36,95.34]
[1747778860028,0.0377248,167.39,167.37,5.9723]
[1747778861634,0.0377248,167.39,167.38,5.972]
[1747778865942,5.9701,167.44,167.41,5.9709]
[1747778866938,6.01448607,167.44,167.41,6.01083246]
[1747778869946,5.9703,167.43,167.41,0.03993246]
[1747778872057,5.9706,167.42,167.41,0.03993246]
[1747778872747,5.971,167.41,167.4,95.36]
[1747778873452,0.04438607,167.44,167.37,93.58]
[1747778873955,0.04438607,167.44,167.37,99.5521]
[1747778874356,0.04438607,167.44,167.37,93.58]
[1747778874552,0.04438607,167.44,167.38,5.972]
[1747778875151,5.9712,167.41,167.38,5.972]
[1747778875656,5.9712,167.41,167.39,5.9716]
[1747778876660,5.9712,167.41,167.38,5.9719]
[1747778879058,5.9712,167.41,167.37,99.5523]
[1747778880158,5.9712,167.41,167.38,5.9719]
[1747778881561,5.9715,167.4,167.37,99.5523]
[1747778881856,6.01670065,167.4,167.37,99.5523]